bitfinex/quotes_BTCUSD_20230120
["timestamp","ask_amount","ask_price","bid_price","bid_amount"]
[1674206979276,3.60577376,20950.0,20949.0,2.59672426]
[1674206979543,3.60577376,20950.0,20949.0,2.92500926]
[1674206981492,3.60577376,20950.0,20949.0,3.09661991]
[1674206981749,3.60577376,20950.0,20949.0,3.59202984]
[1674206982014,3.60577376,20950.0,20949.0,2.92500926]
[1674206982283,3.60577376,20950.0,20949.0,2.59672426]
[1674206982538,3.60577376,20950.0,20949.0,2.76833491]
[1674206983044,3.60577376,20950.0,20949.0,3.26371882]
[1674206983320,3.60577376,20950.0,20949.0,3.10616191]
[1674206983834,3.60577376,20950.0,20949.0,2.59672426]
[1674206984077,3.60577376,20950.0,20949.0,2.76833491]
[1674206984342,3.60577376,20950.0,20949.0,2.59672426]
[1674206984579,3.60577376,20950.0,20949.0,2.76833491]
[1674206984833,3.60577376,20950.0,20949.0,3.26365335]
[1674206985061,3.60577376,20950.0,20949.0,3.59630135]
[1674206985320,3.60577376,20950.0,20949.0,3.10098291]
[1674206986099,3.60577376,20950.0,20949.0,3.59575327]
[1674206987045,3.60577376,20950.0,20949.0,3.48133528]
[1674206987832,3.60577376,20950.0,20949.0,4.42724126]
[1674206988860,3.60577376,20950.0,20949.0,3.70978345]
[1674206989672,3.60577376,20950.0,20949.0,3.48133528]
[1674206989932,3.60577376,20950.0,20949.0,2.92936626]
[1674206990239,3.60577376,20950.0,20949.0,3.2643534]
[1674206990534,3.60577376,20950.0,20949.0,2.91440026]
[1674206990804,3.60577376,20950.0,20949.0,3.26433314]
[1674206991079,3.60577376,20950.0,20949.0,3.58126514]
[1674206992192,3.60577376,20950.0,20949.0,3.08526091]
[1674206992457,3.60577376,20950.0,20949.0,2.59671826]
[1674206992965,3.60577376,20950.0,20949.0,2.11927187]
[1674206994019,3.90577376,20950.0,20949.0,0.10715241]
[1674206999098,4.93732676,20950.0,20949.0,0.10715241]
[1674207000218,4.91973876,20950.0,20949.0,0.10715241]
[1674207000749,4.94169676,20950.0,20949.0,0.10715241]
[1674207001020,4.93238376,20950.0,20949.0,0.10715241]
[1674207001367,4.61149976,20950.0,20949.0,0.10715241]
[1674207001630,4.94431376,20950.0,20949.0,0.10715241]
[1674207002153,4.61149976,20950.0,20949.0,0.10715241]
[1674207002689,6.01899976,20950.0,20949.0,0.10715241]
[1674207003215,6.01899976,20950.0,20949.0,0.1070721]
[1674207003479,5.90479976,20950.0,20949.0,0.1070721]
[1674207003759,5.08882576,20950.0,20949.0,0.11777931]
[1674207004297,4.31149976,20950.0,20949.0,0.76856685]
[1674207004567,3.71997376,20950.0,20949.0,0.58304685]
[1674207005377,3.71997376,20950.0,20949.0,0.11777931]
[1674207005644,3.71997376,20950.0,20949.0,0.44653731]
[1674207006232,4.01997376,20950.0,20949.0,0.11777931]
[1674207006541,3.71997376,20950.0,20949.0,0.59512831]
[1674207006797,3.71997376,20950.0,20949.0,1.29820911]
[1674207007550,3.71997376,20950.0,20949.0,1.77555811]
[1674207013281,3.60577376,20950.0,20949.0,1.77555811]
[1674207016177,4.13397376,20950.0,20949.0,0.1070721]
[1674207018261,4.46434976,20950.0,20949.0,0.1070721]
[1674207018782,4.94167576,20950.0,20949.0,0.1070721]
[1674207019384,5.41900176,20950.0,20949.0,0.1070721]
[1674207019643,5.41900176,20950.0,20949.0,0.1870721]
[1674207021546,5.89632776,20950.0,20949.0,0.1870721]
[1674207021812,5.41900176,20950.0,20949.0,0.1870721]
[1674207026168,5.89632776,20950.0,20949.0,0.1870721]
[1674207026953,5.89632776,20950.0,20949.0,0.1868598]
[1674207027459,5.89632776,20950.0,20949.0,0.24152951]
[1674207030064,5.89632776,20950.0,20949.0,0.1868598]
[1674207031124,5.41900176,20950.0,20949.0,0.1868598]
[1674207031627,5.08862576,20950.0,20949.0,0.1868598]
[1674207034640,5.40385976,20950.0,20949.0,0.1868598]
[1674207034911,5.08862576,20950.0,20949.0,0.1868598]
[1674207035179,5.0885173,20950.0,20949.0,0.24398136]
[1674207039497,5.0885173,20950.0,20949.0,0.1868598]
[1674207043501,4.9743173,20950.0,20949.0,0.1868598]
[1674207048862,5.4516433,20950.0,20949.0,0.1868598]
[1674207049478,5.7996823,20950.0,20949.0,0.1868598]
[1674207051608,5.91407688,20950.0,20949.0,0.1868598]
[1674207051887,5.7996823,20950.0,20949.0,0.1868598]
[1674207052109,5.91407688,20950.0,20949.0,0.1868598]
[1674207052702,5.7996823,20950.0,20949.0,0.1868598]
[1674207052996,5.4516433,20950.0,20949.0,0.1868598]
[1674207056178,5.56603788,20950.0,20949.0,0.1868598]
[1674207056450,5.88181288,20950.0,20949.0,0.1868598]
[1674207056677,5.88181288,20950.0,20949.0,0.18679612]
[1674207057464,5.7674183,20950.0,20949.0,0.18679612]
[1674207057737,5.88181288,20950.0,20949.0,0.18679612]
[1674207058734,5.7674183,20950.0,20949.0,0.18679612]
[1674207058956,5.4516433,20950.0,20949.0,0.18679612]
[1674207059429,4.9743173,20950.0,20949.0,0.58644907]
[1674207059673,4.9743173,20950.0,20949.0,0.51718493]
[1674207060439,4.6743173,20950.0,20949.0,0.51718493]
[1674207060978,4.9743173,20950.0,20949.0,0.51718493]
[1674207061485,4.9743173,20950.0,20949.0,0.70056784]
[1674207061727,4.6743173,20950.0,20949.0,0.70056784]
[1674207061994,3.6056653,20950.0,20949.0,0.81590592]
[1674207062264,3.6056653,20950.0,20949.0,2.79568111]
[1674207062521,3.6056653,20950.0,20949.0,3.28277543]
[1674207062791,3.6056653,20950.0,20949.0,3.16836344]
[1674207063589,3.6056653,20950.0,20949.0,4.21463093]
[1674207063596,3.6056653,20950.0,20949.0,2.62403868]
[1674207063858,3.00424678,20950.0,20949.0,2.62403868]
[1674207064113,3.00424678,20950.0,20949.0,2.29364987]
[1674207064374,3.00424678,20950.0,20949.0,3.35451548]
[1674207064667,3.00424678,20950.0,20949.0,3.80180953]
[1674207065161,3.00424678,20950.0,20949.0,2.77888628]
[1674207065418,3.00424678,20950.0,20949.0,2.36698032]
[1674207065705,3.00424678,20950.0,20949.0,2.88168776]
[1674207065976,3.00424678,20950.0,20949.0,2.71007711]
[1674207066241,3.00424678,20950.0,20949.0,3.88168776]
[1674207067507,3.00424678,20950.0,20949.0,3.71007711]
[1674207068818,3.00424678,20950.0,20949.0,3.79754442]
[1674207069907,3.00424678,20950.0,20949.0,3.36689992]
[1674207070148,3.00424678,20950.0,20949.0,3.83166615]
[1674207070900,3.00424678,20950.0,20949.0,3.36689992]
[1674207071253,3.00424678,20950.0,20949.0,3.73963057]
[1674207071688,3.00424678,20950.0,20949.0,3.62533076]
[1674207071966,3.00418249,20950.0,20949.0,3.62533076]
[1674207074147,3.00418249,20950.0,20949.0,3.79177922]
[1674207075195,3.00418249,20950.0,20949.0,4.13180877]
[1674207075722,3.00418249,20950.0,20949.0,3.96338987]
[1674207075981,3.00418249,20950.0,20949.0,3.79177922]
[1674207077287,3.00418249,20950.0,20949.0,3.96338987]
[1674207077562,3.00418249,20950.0,20949.0,3.79177922]
[1674207081884,3.00418249,20950.0,20949.0,4.23641156]
[1674207082665,3.00418249,20950.0,20949.0,3.69609437]
[1674207085043,3.00418249,20950.0,20949.0,4.12077325]
[1674207090512,3.00418249,20950.0,20949.0,4.23507306]
[1674207093114,3.00418249,20950.0,20949.0,4.84691569]
[1674207093370,3.00418249,20950.0,20949.0,4.40668371]
[1674207093627,3.00418249,20950.0,20949.0,3.81039418]
[1674207095936,3.00406696,20950.0,20949.0,4.42234108]
[1674207096462,3.00406696,20950.0,20949.0,4.84148653]
[1674207096715,3.00406696,20950.0,20949.0,4.40115028]
[1674207096969,3.00406696,20950.0,20949.0,4.84149972]
[1674207097252,3.00406696,20950.0,20949.0,5.32046667]
[1674207097732,3.00406696,20950.0,20949.0,5.43460437]
[1674207099566,3.00406696,20950.0,20949.0,5.90292705]
[1674207099885,3.00406696,20950.0,20949.0,5.4837816]
[1674207100164,3.00406696,20950.0,20949.0,5.67439672]
[1674207101647,3.00406696,20950.0,20949.0,5.48417494]
[1674207102158,3.00406696,20950.0,20949.0,3.30834248]
[1674207102421,3.00406696,20950.0,20949.0,1.94121209]
[1674207102722,3.00406696,20950.0,20949.0,1.76956436]
[1674207103663,3.00406696,20950.0,20949.0,0.76956436]
[1674207104647,3.00406696,20950.0,20949.0,0.30124168]
[1674207105369,3.00406696,20950.0,20949.0,0.18679612]
[1674207106375,3.00406696,20950.0,20949.0,0.58934965]
[1674207106642,3.00406696,20950.0,20949.0,0.58821157]
[1674207107154,3.00406696,20950.0,20949.0,0.18679612]
[1674207107408,3.30406696,20950.0,20949.0,0.18679612]
[1674207109449,3.00406696,20950.0,20949.0,0.18679612]
[1674207109996,3.30406696,20950.0,20949.0,0.18679612]
[1674207110360,3.00406696,20950.0,20949.0,0.18679612]
[1674207110778,3.30406696,20950.0,20949.0,0.18679612]
[1674207111302,3.00406696,20950.0,20949.0,0.18679612]
[1674207111562,3.30406696,20950.0,20949.0,0.18679612]
[1674207112070,2.83406696,20950.0,20949.0,0.18679612]
[1674207112658,2.83406696,20950.0,20949.0,0.41015822]
[1674207113218,2.83406696,20950.0,20949.0,0.18679612]
[1674207113479,3.13406696,20950.0,20949.0,0.18679612]
[1674207113738,2.83406696,20950.0,20949.0,0.18679612]
[1674207114301,2.83406696,20950.0,20949.0,0.55873282]
[1674207121220,2.83406696,20950.0,20949.0,1.51343082]
[1674207121481,2.83406696,20950.0,20949.0,2.18571703]
[1674207121746,2.83406696,20950.0,20949.0,1.70836803]
[1674207123364,2.83406696,20950.0,20949.0,2.04242589]
[1674207123590,2.83406696,20950.0,20949.0,3.49863712]
[1674207123844,2.83406696,20950.0,20949.0,3.38437906]
[1674207124124,2.83406696,20950.0,20949.0,2.88664198]
[1674207124645,2.83406696,20950.0,20949.0,2.89978371]
[1674207125207,2.83406696,20950.0,20949.0,2.97978371]
[1674207126880,2.83406696,20950.0,20949.0,2.8997815]
[1674207129080,2.83406696,20950.0,20949.0,2.78552079]
[1674207129336,2.83406696,20950.0,20949.0,2.89978424]
[1674207129605,2.83406696,20950.0,20949.0,2.45896988]
[1674207130007,2.83406696,20950.0,20949.0,2.89933697]
[1674207130229,2.83406696,20950.0,20949.0,2.45896988]
[1674207131290,2.83406696,20950.0,20949.0,2.28732215]
[1674207131811,2.83406696,20950.0,20949.0,1.94828394]
[1674207134779,2.83406696,20950.0,20949.0,1.83402049]
[1674207135419,2.83406696,20950.0,20949.0,1.94828394]
[1674207136994,2.83406696,20950.0,20949.0,1.94942202]
[1674207137516,2.83406696,20950.0,20949.0,2.12106975]
[1674207137799,2.83406696,20950.0,20949.0,2.93618077]
[1674207138054,2.83406696,20950.0,20949.0,3.76763854]
[1674207138300,2.83406696,20950.0,20949.0,3.8822166]
[1674207140075,2.83406696,20950.0,20949.0,3.71056887]
[1674207141362,2.83406696,20950.0,20949.0,3.88195983]
[1674207142939,2.83406696,20950.0,20949.0,3.71056887]
[1674207143149,2.83406696,20950.0,20949.0,3.8819842]
[1674207143404,2.83406696,20950.0,20949.0,3.88196653]
[1674207145209,2.83406696,20950.0,20949.0,2.67445472]
[1674207145468,2.83406696,20950.0,20949.0,2.55989721]
[1674207145713,2.83406696,20950.0,20949.0,2.11970215]
[1674207145948,2.83406696,20950.0,20949.0,2.56017243]
[1674207146514,2.83406696,20950.0,20949.0,2.12084023]
[1674207146758,2.83406696,20950.0,20949.0,2.11970215]
[1674207146983,2.83406696,20950.0,20949.0,1.94830449]
[1674207147251,2.83398081,20950.0,20949.0,2.70659876]
[1674207147505,2.83398081,20950.0,20949.0,2.59345284]
[1674207148313,2.83398081,20950.0,20949.0,2.70777535]
[1674207148538,2.83398081,20950.0,20949.0,2.70663727]
[1674207149031,2.83398081,20950.0,20949.0,2.26586883]
[1674207149286,2.83398081,20950.0,20949.0,2.26700691]
[1674207149553,2.83398081,20950.0,20949.0,2.7078301]
[1674207150325,2.83398081,20950.0,20949.0,2.56170193]
[1674207150583,2.83398081,20950.0,20949.0,2.56056385]
[1674207151351,2.83398081,20950.0,20949.0,3.5094739]
[1674207151627,2.83398081,20950.0,20949.0,3.50959897]
[1674207155187,2.83398081,20950.0,20949.0,3.39539897]
[1674207156466,2.83398081,20950.0,20949.0,3.22400131]
[1674207156989,2.83398081,20950.0,20949.0,3.39550034]
[1674207157575,2.83398081,20950.0,20949.0,3.39553601]
[1674207158356,2.83398081,20950.0,20949.0,3.87508445]
[1674207158609,2.83398081,20950.0,20949.0,3.9892981]
[1674207158867,2.83398081,20950.0,20949.0,3.70354975]
[1674207159361,2.83398081,20950.0,20949.0,3.9892981]
[1674207160378,2.83398081,20950.0,20949.0,3.76045659]
[1674207168686,2.83398081,20950.0,20949.0,3.47470824]
[1674207169898,2.83398081,20950.0,20949.0,3.2220206]
[1674207170150,2.08230125,20950.0,20949.0,3.56496481]
[1674207170649,2.08230125,20950.0,20949.0,3.2220206]
[1674207173394,2.08230125,20950.0,20949.0,3.67681336]
[1674207173918,2.08230125,20950.0,20949.0,3.68195099]
[1674207174423,2.08230125,20950.0,20949.0,3.2220206]
[1674207178541,2.08230125,20950.0,20949.0,3.56496481]
[1674207179484,2.08230125,20950.0,20949.0,4.07515652]
[1674207179745,2.08230125,20950.0,20949.0,3.56496481]
[1674207179999,2.09030125,20950.0,20949.0,3.57196481]
[1674207180512,2.08230125,20950.0,20949.0,3.56496481]
[1674207180766,2.09030125,20950.0,20949.0,4.08215652]
[1674207181086,2.09030125,20950.0,20949.0,3.57196481]
[1674207182556,1.18839945,20950.0,20949.0,4.26721231]
[1674207182813,1.18839945,20950.0,20949.0,4.95493358]
[1674207183068,1.18839945,20950.0,20949.0,4.96343358]
[1674207183326,1.18839945,20950.0,20949.0,4.31848841]
[1674207183612,1.18839945,20950.0,20949.0,4.31849592]
[1674207183866,1.18839945,20950.0,20949.0,3.97571231]
[1674207184115,1.18839945,20950.0,20949.0,4.3185067]
[1674207185420,1.18839945,20950.0,20949.0,4.6185067]
[1674207186200,1.18839945,20950.0,20949.0,4.77851231]
[1674207186727,1.18839945,20950.0,20949.0,5.12106717]
[1674207189330,1.18839945,20950.0,20949.0,5.12099687]
[1674207189580,1.18839945,20950.0,20949.0,4.82099687]
[1674207189807,1.18839945,20950.0,20949.0,5.12099687]
[1674207190391,0.43681234,20950.0,20949.0,5.12099687]
[1674207190880,0.43681234,20950.0,20949.0,5.00719687]
[1674207192509,9.5e-05,20951.0,20950.0,0.60754925]
[1674207192815,9.5e-05,20951.0,20950.0,3.73565375]
[1674207193335,9.5e-05,20951.0,20950.0,4.73565375]
[1674207193596,9.5e-05,20951.0,20950.0,4.7487457]
[1674207194402,0.007095,20951.0,20950.0,5.2400717]
[1674207195190,0.007095,20951.0,20950.0,6.24622407]
[1674207195763,0.007095,20951.0,20950.0,6.75752407]
[1674207196287,0.007095,20951.0,20950.0,6.75732464]
[1674207196546,0.007095,20951.0,20950.0,6.99598464]
[1674207198411,0.007095,20951.0,20950.0,6.75732464]
[1674207198661,0.007095,20951.0,20950.0,6.41503951]
[1674207198913,0.007095,20951.0,20950.0,6.05250973]
[1674207199160,0.007095,20951.0,20950.0,5.75250973]
[1674207199427,0.00773903,20951.0,20950.0,5.75250973]
[1674207206864,0.00773903,20951.0,20950.0,6.0379161]
[1674207207126,0.00773903,20951.0,20950.0,5.5743461]
[1674207207990,0.00773903,20951.0,20950.0,5.28893973]
[1674207208226,0.00773903,20951.0,20950.0,5.57443911]
[1674207208737,0.00773903,20951.0,20950.0,5.28893973]
[1674207209016,0.00773903,20951.0,20950.0,4.78613973]
[1674207209287,0.00773903,20951.0,20950.0,5.07164188]
[1674207210790,0.00773903,20951.0,20950.0,5.07097263]
[1674207211295,0.00773903,20951.0,20950.0,5.52214578]
[1674207211578,0.00773903,20951.0,20950.0,5.75065154]
[1674207211760,0.00773903,20951.0,20950.0,5.46514939]
[1674207212251,0.00773903,20951.0,20950.0,5.31401136]
[1674207212497,0.00773903,20951.0,20950.0,5.48540164]
[1674207212743,0.00773903,20951.0,20950.0,4.86283821]
[1674207212989,0.00773903,20951.0,20950.0,5.28552092]
[1674207213464,0.00773903,20951.0,20950.0,4.86283821]
[1674207213704,0.00773903,20951.0,20950.0,5.61178832]
[1674207213945,0.00773903,20951.0,20950.0,4.78597389]
[1674207214258,0.00773903,20951.0,20950.0,4.67173816]
[1674207214760,0.00773903,20951.0,20950.0,4.45795223]
[1674207215280,0.00773903,20951.0,20950.0,4.68645799]
[1674207215815,0.00773903,20951.0,20950.0,4.32252593]
[1674207216080,0.00773903,20951.0,20950.0,4.63372821]
[1674207216349,0.00773903,20951.0,20950.0,4.91923036]
[1674207216605,0.00116471,20951.0,20950.0,4.51892245]
[1674207216863,0.00116471,20951.0,20950.0,5.22514576]
[1674207217125,0.00116471,20951.0,20950.0,5.52514576]
[1674207217941,0.00116471,20951.0,20950.0,5.22514576]
[1674207218182,0.00116471,20951.0,20950.0,5.52514576]
[1674207218704,0.00116471,20951.0,20950.0,5.22514576]
[1674207219502,0.01192415,20952.0,20951.0,0.41989851]
[1674207219764,0.01192415,20952.0,20951.0,4.75331166]
[1674207221572,0.01892415,20952.0,20951.0,4.77331166]
[1674207223384,0.01892415,20952.0,20951.0,4.88751166]
[1674207224424,0.01892415,20952.0,20951.0,4.58751166]
[1674207224909,0.01892415,20952.0,20951.0,4.88751166]
[1674207225431,0.01892415,20952.0,20951.0,4.58751166]
[1674207225699,0.01892415,20952.0,20951.0,4.47431166]
[1674207226489,0.01892415,20952.0,20951.0,4.76760224]
[1674207228630,0.01892415,20952.0,20951.0,4.76745835]
[1674207229157,0.01892415,20952.0,20951.0,4.42489858]
[1674207229424,0.01892415,20952.0,20951.0,4.76742545]
[1674207229721,0.00232379,20952.0,20951.0,4.42489858]
[1674207230227,0.00232379,20952.0,20951.0,4.43339858]
[1674207230785,0.00232379,20952.0,20951.0,4.77586378]
[1674207232344,0.00232379,20952.0,20951.0,5.25316778]
[1674207232616,0.00232379,20952.0,20951.0,4.95316778]
[1674207232848,0.00232379,20952.0,20951.0,5.25316778]
[1674207233113,0.00232379,20952.0,20951.0,4.95316778]
[1674207233371,0.00232379,20952.0,20951.0,5.06736778]
[1674207233724,0.00232379,20952.0,20951.0,5.36736778]
[1674207234179,0.00232379,20952.0,20951.0,5.06736778]
[1674207234433,0.00232379,20952.0,20951.0,5.36736778]
[1674207236229,0.00232379,20952.0,20951.0,5.36846013]
[1674207236756,0.0037557,20953.0,20952.0,0.15]
[1674207237022,0.0037557,20953.0,20952.0,3.75381075]
[1674207237264,0.0037557,20953.0,20952.0,4.05381075]
[1674207237524,0.0037557,20953.0,20952.0,5.05381075]
[1674207237776,0.0097557,20953.0,20952.0,4.78081075]
[1674207238030,0.0097557,20953.0,20952.0,5.125868]
[1674207238301,0.0097557,20953.0,20952.0,4.78081075]
[1674207238590,0.0097557,20953.0,20952.0,5.42583012]
[1674207238868,0.0097557,20953.0,20952.0,5.76830499]
[1674207241279,0.0097557,20953.0,20952.0,5.08081075]
[1674207242303,0.0097557,20953.0,20952.0,5.424457]
[1674207242597,0.0097557,20953.0,20952.0,5.7669222]
[1674207244181,0.0037557,20953.0,20952.0,5.7399222]
[1674207244441,0.000863,20953.0,20952.0,5.8269222]
[1674207246050,0.000863,20953.0,20952.0,5.484457]
[1674207246314,0.000863,20953.0,20952.0,5.8269222]
[1674207246591,0.000863,20953.0,20952.0,5.14081075]
[1674207247152,0.000863,20953.0,20952.0,5.80838126]
[1674207247427,0.000863,20953.0,20952.0,5.46591606]
[1674207247687,0.000863,20953.0,20952.0,5.80838126]
[1674207249506,0.000863,20953.0,20952.0,5.46591606]
[1674207250059,0.000863,20953.0,20952.0,5.80838126]
[1674207251171,0.000863,20953.0,20952.0,6.31118126]
[1674207251695,0.000863,20953.0,20952.0,5.96871606]
[1674207251957,3e-06,20953.0,20952.0,7.4630787]
[1674207252238,3e-06,20953.0,20952.0,7.97039188]
[1674207252497,0.01192449,20954.0,20953.0,0.959737]
[1674207252765,0.01192449,20954.0,20953.0,6.53771514]
[1674207253311,0.01192449,20954.0,20953.0,6.29908514]
[1674207254041,0.01192449,20954.0,20953.0,6.38608514]
[1674207254586,0.00275279,20954.0,20953.0,6.0439265]
[1674207254847,0.00275279,20954.0,20953.0,6.38624264]
[1674207255927,0.00275279,20954.0,20953.0,6.386233]
[1674207256209,0.00275279,20954.0,20953.0,6.94190216]
[1674207256725,0.0060101,20955.0,20954.0,0.6528]
[1674207257005,0.0060101,20955.0,20954.0,5.17662997]
[1674207258098,0.0060101,20955.0,20954.0,5.26362997]
[1674207258628,0.0060101,20955.0,20954.0,4.92118305]
[1674207259184,0.0060101,20955.0,20954.0,5.26362569]
[1674207260430,0.0060101,20955.0,20954.0,5.26471788]
[1674207261366,0.0060101,20955.0,20954.0,4.92227524]
[1674207261639,0.0060101,20955.0,20954.0,5.81556497]
[1674207262725,0.0060101,20955.0,20954.0,5.82406497]
[1674207263168,0.0060101,20955.0,20954.0,6.41546666]
[1674207263601,0.0060101,20955.0,20954.0,6.65407666]
[1674207264487,0.00142833,20955.0,20954.0,6.65407666]
[1674207265152,0.00142833,20955.0,20954.0,5.86444836]
[1674207267864,0.00142833,20955.0,20954.0,5.45024836]
[1674207268116,0.00142833,20955.0,20954.0,5.44829659]
[1674207268567,0.00142833,20955.0,20954.0,5.10605402]
[1674207268794,0.00142833,20955.0,20954.0,5.40605402]
[1674207269018,0.00142833,20955.0,20954.0,5.74832545]
[1674207269432,0.00142833,20955.0,20954.0,5.44832545]
[1674207269652,0.00142833,20955.0,20954.0,4.79699239]
[1674207269901,0.00142833,20955.0,20954.0,5.76241914]
[1674207272572,0.00142833,20955.0,20954.0,6.31113594]
[1674207272880,0.00142833,20955.0,20954.0,5.762494]
[1674207273057,0.00142833,20955.0,20954.0,5.42014771]
[1674207273333,0.00142833,20955.0,20954.0,5.76251055]
[1674207274008,0.00142833,20955.0,20954.0,5.46251055]
[1674207274224,0.00142833,20955.0,20954.0,5.76251055]
[1674207274924,0.00142833,20955.0,20954.0,5.46251055]
[1674207275172,0.00142833,20955.0,20954.0,5.76251055]
[1674207275862,0.00142833,20955.0,20954.0,5.34831055]
[1674207276545,0.0005048,20955.0,20954.0,5.34831055]
[1674207276771,0.0005048,20955.0,20954.0,5.64831055]
[1674207277245,0.0005048,20955.0,20954.0,5.34831055]
[1674207278615,0.0005048,20955.0,20954.0,5.64831055]
[1674207279521,0.0005048,20955.0,20954.0,6.20237262]
[1674207279757,0.0005048,20955.0,20954.0,5.90237262]
[1674207279758,0.00011909,20955.0,20954.0,5.90237262]
[1674207280008,0.00011909,20955.0,20954.0,5.90243099]
[1674207280232,0.00011909,20955.0,20954.0,6.20246329]
[1674207284041,0.00011909,20955.0,20954.0,7.14876603]
[1674207287220,0.00011909,20955.0,20954.0,7.26296603]
[1674207287520,9e-08,20955.0,20954.0,7.26296603]
[1674207287746,0.01500866,20957.0,20956.0,0.74139]
[1674207288013,0.01500866,20957.0,20956.0,5.58604531]
[1674207288282,0.01500866,20957.0,20956.0,6.80571621]
[1674207288545,0.01500866,20957.0,20956.0,7.80571621]
[1674207289070,0.01500866,20957.0,20956.0,7.91991621]
[1674207289375,0.01596131,20959.0,20957.0,0.61759353]
[1674207289659,0.01596131,20959.0,20958.0,3.50641768]
[1674207289918,0.01596131,20959.0,20958.0,3.94724087]
[1674207290214,0.01596131,20959.0,20958.0,4.50825131]
[1674207290477,0.01596131,20959.0,20958.0,4.94724087]
[1674207290760,0.01596131,20959.0,20958.0,4.92710374]
[1674207291021,0.01596131,20959.0,20958.0,5.74250963]
[1674207291278,0.01596131,20959.0,20958.0,5.30352007]
[1674207291554,0.01596131,20959.0,20958.0,5.74249395]
[1674207292327,0.01596131,20959.0,20958.0,5.30350439]
[1674207292582,0.01596131,20959.0,20958.0,5.62859395]
[1674207293034,0.01596131,20959.0,20958.0,5.3431933]
[1674207293035,0.01596131,20959.0,20958.0,5.34428529]
[1674207294118,0.01596131,20959.0,20958.0,5.6667326]
[1674207294411,0.01596131,20959.0,20958.0,5.34428529]
[1674207296335,0.01596131,20959.0,20958.0,5.64428529]
[1674207296599,0.00559579,20959.0,20958.0,5.64428529]
[1674207297193,0.00559579,20959.0,20958.0,5.34428529]
[1674207299099,0.00559579,20959.0,20958.0,5.62953686]
[1674207299926,0.00559579,20959.0,20958.0,5.34428529]
[1674207300718,0.00559579,20959.0,20958.0,5.62951705]
[1674207301261,0.00559579,20959.0,20958.0,5.34428529]
[1674207302579,0.00559579,20959.0,20958.0,5.75848529]
[1674207303360,0.00559579,20959.0,20958.0,6.42469574]
[1674207304177,0.00559579,20959.0,20958.0,5.75848529]
[1674207305683,0.00559579,20959.0,20958.0,5.45848529]
[1674207305914,0.00559579,20959.0,20958.0,5.75848529]
[1674207306704,0.00559579,20959.0,20958.0,6.42438843]
[1674207306934,0.00559579,20959.0,20958.0,5.75848529]
[1674207309122,0.00559579,20959.0,20958.0,6.42437821]
[1674207309398,0.01648299,20960.0,20959.0,0.74562044]
[1674207309652,0.01648299,20960.0,20959.0,5.4733056]
[1674207309918,0.01648299,20960.0,20959.0,5.7733056]
[1674207310441,0.01648299,20960.0,20959.0,6.25050729]
[1674207310704,0.01648299,20960.0,20959.0,6.34150729]
[1674207310960,0.01648299,20960.0,20959.0,5.99946916]
[1674207311810,9.9e-07,20960.0,20959.0,5.99946916]
[1674207312071,9.9e-07,20960.0,20959.0,6.34137724]
[1674207312782,9.9e-07,20960.0,20959.0,6.88143985]
[1674207313305,9.9e-07,20960.0,20959.0,6.99553985]
[1674207313526,9.9e-07,20960.0,20959.0,7.44818599]
[1674207313791,0.01814593,20962.0,20960.0,0.65286]
[1674207314053,0.01814593,20962.0,20961.0,5.09250744]
[1674207314315,0.01814593,20962.0,20961.0,6.47874528]
[1674207314580,0.01814593,20962.0,20961.0,7.47852204]
[1674207315121,0.01814593,20962.0,20961.0,7.51378456]
[1674207315650,0.01814902,20963.0,20962.0,0.6528]
[1674207315923,0.01814902,20963.0,20962.0,5.72994671]
[1674207316179,0.01814902,20963.0,20962.0,5.06504899]
[1674207316462,0.01814902,20963.0,20962.0,5.38686645]
[1674207316730,0.01294821,20964.0,20963.0,0.6528]
[1674207316984,0.01294821,20964.0,20963.0,3.62593769]
[1674207317248,0.01294821,20964.0,20963.0,5.19421909]
[1674207317531,0.01294821,20964.0,20963.0,5.19531081]
[1674207317819,0.01294821,20964.0,20963.0,6.12287796]
[1674207318096,0.01294821,20964.0,20963.0,6.19531081]
[1674207318878,0.01294821,20964.0,20963.0,6.28731081]
[1674207319718,0.01,20969.0,20964.0,0.98017359]
[1674207319983,0.01,20969.0,20964.0,4.67414715]
[1674207320251,0.13341238,20968.0,20964.0,3.81409611]
[1674207320544,0.13341238,20968.0,20964.0,3.81410322]
[1674207320819,0.13341238,20968.0,20964.0,4.36682165]
[1674207321077,0.13341238,20968.0,20964.0,4.4804506]
[1674207321352,0.13341238,20968.0,20964.0,4.25309278]
[1674207321607,0.13341238,20968.0,20964.0,4.36679986]
[1674207321873,0.13341238,20968.0,20964.0,3.9278103]
[1674207322142,0.13341238,20968.0,20964.0,4.0198103]
[1674207322417,0.13341238,20968.0,20964.0,3.9278103]
[1674207322671,0.13341238,20968.0,20964.0,3.18529418]
[1674207322933,0.13341238,20968.0,20964.0,2.63079643]
[1674207323219,0.13341238,20968.0,20964.0,2.84295946]
[1674207323479,0.13341238,20968.0,20964.0,2.84289946]
[1674207323782,0.13341238,20968.0,20964.0,2.34009946]
[1674207324044,0.13341238,20968.0,20964.0,2.22642991]
[1674207324303,0.13341238,20968.0,20964.0,2.34017119]
[1674207325718,0.13341238,20968.0,20964.0,2.12806816]
[1674207326372,0.13341238,20968.0,20964.0,2.33997964]
[1674207326601,0.13341238,20968.0,20964.0,2.12806816]
[1674207327626,0.13341238,20968.0,20964.0,2.60507616]
[1674207328457,0.13341238,20968.0,20964.0,2.81696736]
[1674207328948,0.13341238,20968.0,20964.0,2.60507616]
[1674207329472,0.13341238,20968.0,20964.0,2.60501616]
[1674207330019,0.13341238,20968.0,20964.0,2.81692037]
[1674207330280,0.13341238,20968.0,20964.0,2.43450587]
[1674207332425,0.13341238,20968.0,20964.0,3.04400572]
[1674207332647,0.13341238,20968.0,20964.0,2.70353869]
[1674207333135,0.13341238,20968.0,20964.0,3.19811877]
[1674207333390,0.13341238,20968.0,20964.0,2.43454062]
[1674207335439,0.42215757,20965.0,20964.0,2.30884644]
[1674207335707,0.3415366,20965.0,20964.0,1.88320341]
[1674207335962,0.4456226,20965.0,20964.0,1.88320341]
[1674207336247,0.1137666,20965.0,20964.0,2.03919206]
[1674207336495,0.1137666,20965.0,20964.0,1.79120341]
[1674207336760,0.1147666,20965.0,20964.0,1.39919541]
[1674207337279,0.4464186,20965.0,20964.0,1.39919541]
[1674207337793,0.4454186,20965.0,20964.0,1.31419541]
[1674207338036,0.1147666,20965.0,20964.0,1.39919541]
[1674207339088,0.1147666,20965.0,20964.0,1.40050121]
[1674207339351,0.1147666,20965.0,20964.0,1.61852644]
[1674207339615,0.1147666,20965.0,20964.0,1.69688109]
[1674207340732,0.0010666,20965.0,20964.0,1.25834703]
[1674207340988,0.0010666,20965.0,20964.0,1.76098586]
[1674207341249,0.0010666,20965.0,20964.0,2.07428386]
[1674207341892,0.0010666,20965.0,20964.0,2.90506435]
[1674207342125,0.00035237,20965.0,20964.0,3.13240846]
[1674207342342,0.00035237,20965.0,20964.0,2.96189817]
[1674207342590,0.00035237,20965.0,20964.0,3.13266622]
[1674207343041,0.00035237,20965.0,20964.0,2.96189817]
[1674207343489,0.00035237,20965.0,20964.0,3.02720138]
[1674207344424,0.01921238,20966.0,20964.0,2.94220138]